fUST/lending_fUST_20250430
["ID","MTS","AMOUNT","RATE_DAILY","PERIOD"]
[359424519,1746004262517,-400.0,0.00028086,2]
[359424520,1746004262527,-504.87027715,0.00028086,2]
[359424521,1746004262537,-400.0,0.00028086,2]
[359424522,1746004262548,-400.0,0.00028086,2]
[359424523,1746004262558,-200.0,0.00028086,2]
[359424524,1746004262568,-402.75711438,0.00028086,2]
[359424525,1746004262578,-502.26322435,0.00028086,2]
[359424526,1746004262588,-400.0,0.00028086,2]
[359424527,1746004262597,-516.76,0.00028086,2]
[359424528,1746004262607,-400.0,0.00028086,2]
[359424529,1746004262616,-501.79349249,0.00028086,2]
[359424530,1746004262625,-400.0,0.00028086,2]
[359424531,1746004262634,-400.0,0.00028086,2]
[359424532,1746004262643,-502.97291629,0.00028086,2]
[359424533,1746004262653,-509.29243448,0.00028086,2]
[359424534,1746004262662,-400.9112927,0.00028086,2]
[359424535,1746004262671,-400.0,0.00028086,2]
[359424536,1746004262680,-400.0,0.00028086,2]
[359424537,1746004262690,-400.88712834,0.00028086,2]
[359424538,1746004262699,-400.0,0.00028086,2]
[359424539,1746004262708,-400.0,0.00028086,2]
[359424540,1746004262718,-400.0,0.00028086,2]
[359424541,1746004262727,-414.51303545,0.00028086,2]
[359424542,1746004262736,-200.0,0.00028086,2]
[359424543,1746004262745,-204.24901556,0.00028086,2]
[359424544,1746004262755,-1287.18,0.00028086,2]
[359424545,1746004262764,-400.31893741,0.00028086,2]
[359424546,1746004262774,-400.0,0.00028086,2]
[359424547,1746004262783,-400.0,0.00028086,2]
[359424548,1746004262793,-400.0,0.00028086,2]
[359424549,1746004262802,-400.0,0.00028086,2]
[359424550,1746004262811,-400.0,0.00028086,2]
[359424551,1746004262821,-472.96,0.00028086,2]
[359424552,1746004262831,-400.0,0.00028086,2]
[359424553,1746004262840,-400.0,0.00028086,2]
[359424554,1746004262850,-400.0,0.00028086,2]
[359424555,1746004262859,-400.0,0.00028086,2]
[359424556,1746004262868,-507.92966408,0.00028086,2]
[359424557,1746004262877,-400.0,0.00028086,2]
[359424558,1746004262886,-400.0,0.00028086,2]
[359424559,1746004262896,-400.0,0.00028086,2]
[359424560,1746004262905,-315.105946,0.00028086,2]
[359424561,1746004262914,-151.0,0.00028086,7]
[359424562,1746004262923,-151.0,0.00028086,7]
[359424563,1746004263026,-151.0,0.00028086,7]
[359424564,1746004263039,-151.0,0.00028086,7]
[359424565,1746004263050,-151.0,0.00028096,2]
[359424566,1746004263060,-151.0,0.00028096,2]
[359424567,1746004263070,-207.4,0.00028096,2]
[359424568,1746004263081,-502.60921342,0.00028096,2]
[359424569,1746004263091,-297.43718551,0.00028142,2]
[359424570,1746004263101,-8677.47627896,0.00028199,2]
[359424571,1746004263111,-17354.9525579,0.00028209,2]
[359424572,1746004263121,-421.37435881,0.00028219,3]
[359424573,1746004263131,-400.0,0.00028219,2]
[359424574,1746004263141,-400.0,0.00028219,2]
[359424575,1746004263151,-400.0,0.00028219,2]
[359424576,1746004263161,-400.0,0.00028219,2]
[359424577,1746004263170,-400.0,0.00028219,2]
[359424578,1746004263180,-400.0,0.00028219,2]
[359424579,1746004263190,-400.0,0.00028219,2]
[359424580,1746004263200,-400.0,0.00028219,2]
[359424581,1746004263210,-400.0,0.00028219,2]
[359424582,1746004263220,-400.0,0.00028219,2]
[359424583,1746004263230,-400.0,0.00028219,2]
[359424584,1746004263240,-664.86,0.00028219,2]
[359424585,1746004263250,-630.33,0.00028219,2]
[359424586,1746004263260,-400.0,0.00028219,2]
[359424587,1746004263269,-400.0,0.00028219,2]
[359424588,1746004263282,-400.0,0.00028219,2]
[359424589,1746004263292,-400.0,0.00028219,2]
[359424590,1746004263301,-400.0,0.00028219,2]
[359424591,1746004263311,-400.0,0.00028219,2]
[359424592,1746004263322,-400.0,0.00028219,2]
[359424593,1746004263334,-500.0,0.00028219,2]
[359424594,1746004263343,-681.99,0.00028219,2]
[359424595,1746004263353,-400.0,0.00028219,2]
[359424596,1746004263363,-400.0,0.00028219,2]
[359424597,1746004263373,-400.0,0.00028219,2]
[359424598,1746004263383,-400.0,0.00028219,2]
[359424599,1746004263393,-400.0,0.00028219,2]
[359424600,1746004263402,-400.0,0.00028219,2]
[359424601,1746004263413,-400.0,0.00028219,2]
[359424602,1746004263422,-400.0,0.00028219,2]
[359424603,1746004263432,-400.0,0.00028219,2]
[359424604,1746004263442,-400.0,0.00028219,2]
[359424605,1746004263452,-432.67,0.00028219,2]
[359424606,1746004263464,-372.02980728,0.00028219,2]
[359424607,1746004263474,-400.0,0.00028219,2]
[359424608,1746004263484,-456.03,0.00028219,2]
[359424609,1746004263494,-400.0,0.00028219,2]
[359424610,1746004263504,-890.53,0.00028219,2]
[359424611,1746004263514,-400.0,0.00028219,2]
[359424612,1746004263524,-400.0,0.00028219,2]
[359424613,1746004263533,-466.27,0.00028219,2]
[359424614,1746004263546,-400.0,0.00028219,2]
[359424615,1746004263556,-400.0,0.00028219,2]
[359424616,1746004263566,-407.12973004,0.00028219,2]
[359424617,1746004263577,-151.0,0.00028219,7]
[359424618,1746004263587,-1121.98,0.00028219,2]
[359424619,1746004263596,-400.0,0.00028219,2]
[359424620,1746004263607,-527.88,0.00028219,2]
[359424621,1746004263617,-400.0,0.00028219,2]
[359424622,1746004263626,-400.0,0.00028219,2]
[359424623,1746004263636,-400.0,0.00028219,2]
[359424624,1746004263646,-500.18,0.00028219,2]
[359424625,1746004263655,-505.56229302,0.00028219,2]
[359424626,1746004263664,-380.39,0.00028219,2]
[359424627,1746004263673,-615.05790009,0.00028219,2]
[359424628,1746004263683,-400.0,0.00028219,2]
[359424629,1746004263692,-400.0,0.00028219,2]
[359424630,1746004263702,-400.0,0.00028219,2]
[359424631,1746004263712,-678.6,0.00028219,2]
[359424632,1746004263721,-430.9,0.00028219,2]
[359424633,1746004263731,-454.88784123,0.00028219,2]
[359424634,1746004263741,-400.0,0.00028219,2]
[359424635,1746004263750,-1042.6,0.00028219,2]
[359424636,1746004263760,-400.0,0.00028219,2]
[359424637,1746004263769,-400.0,0.00028219,2]
[359424638,1746004263779,-400.0,0.00028219,2]
[359424639,1746004263789,-400.0,0.00028219,2]
[359424640,1746004263798,-400.0,0.00028219,2]
[359424641,1746004263808,-400.0,0.00028219,2]
[359424642,1746004263818,-400.0,0.00028219,2]
[359424643,1746004263830,-177.350754,0.00028219,2]
[359424644,1746004263997,-954.079246,0.00028219,2]
[359424645,1746004264007,-400.0,0.00028219,2]
[359424646,1746004264017,-400.0,0.00028219,2]
[359424647,1746004264027,-1647.78,0.00028219,2]
[359424648,1746004264036,-400.0,0.00028219,2]
[359424649,1746004264045,-400.0,0.00028219,2]
[359424650,1746004264055,-400.0,0.00028219,2]
[359424651,1746004264064,-400.0,0.00028219,2]
[359424652,1746004264074,-302.44802137,0.00028219,2]
[359424653,1746004264088,-400.0,0.00028219,2]
[359424654,1746004264097,-400.0,0.00028219,2]
[359424655,1746004264107,-400.0,0.00028219,2]
[359424656,1746004264117,-400.0,0.00028219,2]
[359424657,1746004264127,-400.0,0.00028219,2]
[359424658,1746004264136,-400.0,0.00028219,2]
[359424659,1746004264146,-400.0,0.00028219,2]
[359424660,1746004264156,-252.60841162,0.00028219,2]
[359424661,1746004264166,-400.0,0.00028219,2]
[359424662,1746004264176,-400.0,0.00028219,2]
[359424663,1746004264185,-400.0,0.00028219,2]
[359424664,1746004264194,-151.0,0.00028219,7]
[359424665,1746004264204,-593.18,0.00028219,2]
[359424666,1746004264213,-216.97940285,0.00028219,2]
[359424667,1746004264222,-410.79424931,0.00028219,2]
[359424668,1746004264232,-410.74880879,0.00028219,2]
[359424669,1746004264242,-894.3,0.00028219,2]
[359424670,1746004264252,-256.42297332,0.00028219,2]
[359424671,1746004264261,-151.0,0.00028219,7]
[359424672,1746004264271,-400.0,0.00028219,2]
[359424673,1746004264281,-400.0,0.00028219,2]
[359424674,1746004264291,-508.77159985,0.00028219,2]
[359424675,1746004264300,-400.0,0.00028219,2]
[359424676,1746004264310,-400.0,0.00028219,2]
[359424677,1746004264321,-400.0,0.00028219,2]
[359424678,1746004264332,-439.0,0.00028219,2]
[359424679,1746004264342,-892.79,0.00028219,2]
[359424680,1746004264352,-400.0,0.00028219,2]
[359424681,1746004264362,-400.0,0.00028219,2]
[359424682,1746004264372,-296.88597706,0.00028219,2]
[359424683,1746004264590,-400.0,0.00027397,2]
[359424684,1746004264600,-400.0,0.00027397,2]
[359424685,1746004264609,-2427.33,0.00027397,2]
[359424686,1746004264620,-400.0,0.00027671,2]
[359424687,1746004264630,-400.0,0.00027671,2]
[359424688,1746004264639,-2427.33,0.00027671,2]
[359424689,1746004264650,-200.0,0.00027945,2]
[359424690,1746004264660,-1328.55637377,0.00027945,2]
[359424707,1746005373122,-358.6611375,0.00024044,2]
[359424708,1746005373145,-768.57624,0.00024134,2]
[359424709,1746005373170,-2517.8564262,0.00024222,2]
[359424710,1746005373377,-253.9701639,0.00024811,2]
[359424711,1746005373401,-1152.78990946,0.00024847,2]
[359424805,1746005438586,-1596.82033384,0.00024847,2]
[359424806,1746005438597,-364.255107,0.00024932,2]
[359424807,1746005438607,-4163.11768294,0.00025,2]
[359424808,1746005438619,-836.88231706,0.00025,2]
[359424809,1746005438629,-486.42690159,0.00025115,2]
[359424810,1746005438640,-300.0,0.00025124,2]
[359424811,1746005438652,-300.0,0.00025124,2]
[359424812,1746005438663,-1200.0,0.00025124,2]
[359424813,1746005438673,-300.0,0.00025124,2]
[359424814,1746005438683,-24900.0,0.00025125,2]
[359424815,1746005438693,-1771.34650882,0.00025231,2]
[359424816,1746005438703,-3334.1165821,0.00025431,2]
[359424817,1746005438713,-216.298747,0.00025899,2]
[359424818,1746005438722,-13335.30035615,0.00025899,2]
[359424819,1746005438739,-22940.06921468,0.00025899,2]
[359424820,1746005438749,-489.49285624,0.00025999,2]
[359424821,1746005438758,-558.1147565,0.00025999,2]
[359424822,1746005438768,-500.0,0.00025999,2]
[359424823,1746005438778,-500.0,0.00025999,2]
[359424824,1746005438788,-500.0,0.00025999,2]
[359424825,1746005438798,-508.7668403,0.00025999,2]
[359424826,1746005438807,-500.0,0.00025999,2]
[359424827,1746005438816,-500.0,0.00025999,2]
[359424828,1746005438826,-500.0,0.00025999,2]
[359424829,1746005438836,-500.0,0.00025999,2]
[359424830,1746005438845,-500.0,0.00025999,2]
[359424831,1746005438855,-500.0,0.00025999,2]
[359424832,1746005438865,-500.0,0.00025999,2]
[359424833,1746005438875,-500.0,0.00025999,2]
[359424834,1746005438884,-500.0,0.00025999,2]
[359424835,1746005438894,-500.0,0.00025999,2]
[359424836,1746005438905,-500.0,0.00025999,2]
[359424837,1746005438915,-500.0,0.00025999,2]
[359424838,1746005438925,-500.0,0.00025999,2]
[359424839,1746005438934,-500.0,0.00025999,2]
[359424840,1746005438944,-500.0,0.00025999,2]
[359424841,1746005438954,-500.0,0.00025999,2]
[359424842,1746005438963,-500.0,0.00025999,2]
[359424843,1746005438973,-500.0,0.00025999,2]
[359424844,1746005438982,-500.0,0.00025999,2]
[359424845,1746005438991,-500.0,0.00025999,2]
[359424846,1746005439001,-325.48594662,0.00025999,2]
[359424847,1746005439010,-500.0,0.00025999,2]
[359424848,1746005439020,-500.0,0.00025999,2]
[359424849,1746005439029,-500.0,0.00025999,2]
[359424850,1746005439039,-500.0,0.00025999,2]
[359424851,1746005439049,-500.0,0.00025999,2]
[359424852,1746005439058,-500.0,0.00025999,2]
[359424853,1746005439068,-209.92708561,0.00025999,2]
[359424854,1746005439078,-500.0,0.00025999,2]
[359424855,1746005439088,-500.0,0.00025999,2]
[359424856,1746005439097,-500.0,0.00025999,2]
[359424857,1746005439107,-500.0,0.00025999,2]
[359424858,1746005439116,-500.0,0.00025999,2]
[359424859,1746005439126,-500.0,0.00025999,2]
[359424860,1746005439136,-500.0,0.00025999,2]
[359424861,1746005439150,-500.0,0.00025999,2]
[359424862,1746005439160,-500.0,0.00025999,2]
[359424863,1746005439170,-500.0,0.00025999,2]
[359424864,1746005439180,-500.0,0.00025999,2]
[359424865,1746005439190,-500.0,0.00025999,2]
[359424866,1746005439200,-500.0,0.00025999,2]
[359424867,1746005439209,-500.0,0.00025999,2]
[359424868,1746005439219,-500.0,0.00025999,2]
[359424869,1746005439229,-500.0,0.00025999,2]
[359424870,1746005439238,-500.0,0.00025999,2]
[359424871,1746005439248,-500.0,0.00025999,2]
[359424872,1746005439259,-500.0,0.00025999,2]
[359424873,1746005439270,-500.0,0.00025999,2]
[359424874,1746005439282,-500.0,0.00025999,2]
[359424875,1746005439291,-500.0,0.00025999,2]
[359424876,1746005439302,-500.0,0.00025999,2]
[359424877,1746005439312,-500.0,0.00025999,2]
[359424878,1746005439322,-500.0,0.00025999,2]
[359424879,1746005439332,-500.0,0.00025999,2]
[359424880,1746005439342,-500.0,0.00025999,2]
[359424881,1746005439353,-500.0,0.00025999,2]
[359424882,1746005439364,-500.0,0.00025999,2]
[359424883,1746005439374,-500.0,0.00025999,2]
[359424884,1746005439386,-500.0,0.00025999,2]
[359424885,1746005439397,-500.0,0.00025999,2]
[359424886,1746005439407,-500.0,0.00025999,2]
[359424887,1746005439417,-517.91902595,0.00026,2]
[359424888,1746005439426,-19900.0,0.00026,2]
[359424889,1746005439437,-154.97048864,0.00026007,2]
[359424890,1746005439447,-62517.042154,0.00026108,2]
[359424891,1746005439457,-501.06,0.0002611,3]
[359424892,1746005439466,-33356.2714937,0.0002613,2]
[359424893,1746005439475,-178.21813562,0.00026173,2]
[359424894,1746005439485,-500.0,0.00026173,2]
[359424895,1746005439495,-152.0,0.00026195,2]
[359424896,1746005439504,-301.75109796,0.00026224,2]
[359424897,1746005439514,-301.75109796,0.00026335,2]
[359424898,1746005439524,-301.75109796,0.00026737,2]
[359424899,1746005439535,-246.864094,0.00026879,2]
[359424900,1746005439545,-500.0,0.00026879,2]
[359424901,1746005439555,-500.0,0.00026879,2]
[359424902,1746005439565,-310.9087407,0.00026879,2]
[359424903,1746005439575,-500.0,0.00026879,2]
[359424904,1746005439585,-331.10695398,0.00026879,2]
[359424905,1746005439597,-62517.042154,0.0002688,2]
[359424906,1746005439606,-7112.83154813,0.000269,2]
[359424907,1746005439616,-160.0,0.00027,3]
[359424908,1746005439626,-250.0,0.00027036,2]
[359424909,1746005439635,-301.75109796,0.00027079,2]
[359424910,1746005439645,-420.0,0.00027214,2]
[359424911,1746005439657,-420.0,0.00027214,2]
[359424912,1746005439667,-420.0,0.00027214,2]
[359424913,1746005439676,-1000.0,0.00027297,2]
[359424914,1746005439686,-1680.0,0.00027337,2]
[359424915,1746005439696,-1771.3465088,0.0002737,2]
[359424916,1746005439707,-500.0,0.00027373,2]
[359424917,1746005439716,-500.0,0.00027373,2]
[359424918,1746005439726,-503.32819878,0.00027373,2]
[359424919,1746005439736,-501.12877491,0.00027373,2]
[359424920,1746005439746,-500.0,0.00027373,2]
[359424921,1746005439755,-510.56645775,0.00027373,2]
[359424922,1746005439765,-262.1814219,0.00027373,2]
[359424923,1746005439774,-614.49867781,0.00027373,2]
[359424924,1746005439784,-500.0,0.00027373,2]
[359424925,1746005439793,-500.0,0.00027373,2]
[359424926,1746005439803,-500.0,0.00027373,2]
[359424927,1746005439813,-500.0,0.00027373,2]
[359424928,1746005439822,-500.10494348,0.00027373,2]
[359424929,1746005439832,-500.0,0.00027373,2]
[359424930,1746005439843,-150.0,0.00027373,2]
[359424931,1746005439853,-500.0,0.00027373,2]
[359424932,1746005439862,-500.0,0.00027373,2]
[359424933,1746005439872,-500.0,0.00027373,2]
[359424934,1746005439882,-300.0,0.00027373,2]
[359424935,1746005439893,-301.75109796,0.00027373,2]
[359424936,1746005439904,-250068.168616,0.00027387,2]
[359424937,1746005439914,-400.0,0.00027397,2]
[359424938,1746005439925,-400.0,0.00027397,2]
[359424939,1746005439935,-400.0,0.00027397,2]
[359424940,1746005439945,-500.0,0.00027397,2]
[359424941,1746005439955,-400.0,0.00027397,2]
[359424942,1746005439964,-500.0,0.00027397,2]
[359424943,1746005439974,-500.0,0.00027397,2]
[359424944,1746005439983,-500.0,0.00027397,2]
[359424945,1746005439993,-500.0,0.00027397,2]
[359424946,1746005440002,-400.0,0.00027397,2]
[359424947,1746005440012,-500.0,0.00027397,2]
[359424948,1746005440021,-500.0,0.00027397,2]
[359424949,1746005440030,-505.26,0.00027397,2]
[359424950,1746005440040,-500.0,0.00027397,2]
[359424951,1746005440049,-500.0,0.00027397,2]
[359424952,1746005440059,-500.0,0.00027397,2]
[359424953,1746005440068,-400.0,0.00027397,2]
[359424955,1746005440077,-500.0,0.00027397,2]
[359424956,1746005440087,-400.0,0.00027397,2]
[359424957,1746005440096,-400.0,0.00027397,2]
[359424958,1746005440106,-500.81755452,0.00027397,2]
[359424959,1746005440115,-400.0,0.00027397,2]
[359424960,1746005440125,-400.0,0.00027397,2]
[359424961,1746005440135,-500.0,0.00027397,2]
[359424962,1746005440145,-400.0,0.00027397,2]
[359424963,1746005440156,-350.24561763,0.00027397,2]
[359424964,1746005440165,-500.0,0.00027397,2]
[359424965,1746005440175,-500.0,0.00027397,2]
[359424966,1746005440184,-400.0,0.00027397,2]
[359424967,1746005440194,-400.0,0.00027397,2]
[359424968,1746005440204,-400.0,0.00027397,2]
[359424969,1746005440213,-500.0,0.00027397,2]
[359424970,1746005440222,-1000.0,0.00027397,2]
[359424971,1746005440231,-500.0,0.00027397,2]
[359424972,1746005440242,-400.0,0.00027397,2]
[359424973,1746005440253,-500.0,0.00027397,2]
[359424974,1746005440264,-379.67857308,0.00027397,2]
[359424975,1746005440278,-502.806224,0.00027397,2]
[359424976,1746005440287,-500.71607554,0.00027397,2]
[359424977,1746005440297,-400.0,0.00027397,2]
[359424978,1746005440307,-400.0,0.00027397,2]
[359424979,1746005440316,-504.1071239,0.00027397,2]
[359424980,1746005440326,-500.0,0.00027397,2]
[359424981,1746005440335,-500.93099059,0.00027397,2]
[359424982,1746005440347,-500.0,0.00027397,2]
[359424983,1746005440356,-400.0,0.00027397,2]
[359424984,1746005440365,-502.94415148,0.00027397,2]
[359424985,1746005440375,-400.0,0.00027397,2]
[359424986,1746005440384,-503.51856994,0.00027397,2]
[359424987,1746005440394,-500.0,0.00027397,2]
[359424988,1746005440404,-500.0,0.00027397,2]
[359424989,1746005440413,-500.0,0.00027397,2]
[359424990,1746005440423,-500.0,0.00027397,2]
[359424991,1746005440432,-400.0,0.00027397,2]
[359424992,1746005440443,-400.0,0.00027397,2]
[359424993,1746005440453,-393.85345416,0.00027397,2]
[359424994,1746005440463,-500.0,0.00027397,2]
[359424995,1746005440473,-400.0,0.00027397,2]
[359424996,1746005440482,-500.0,0.00027397,2]
[359424997,1746005440491,-400.0,0.00027397,2]
[359424999,1746005440501,-500.0,0.00027397,2]
[359425000,1746005440511,-500.0,0.00027397,2]
[359425001,1746005440520,-400.0,0.00027397,2]
[359425002,1746005440529,-400.0,0.00027397,2]
[359425003,1746005440539,-294.78642621,0.00027397,2]
[359425005,1746005440558,-105.21357379,0.00027397,2]
[359425006,1746005440568,-400.0,0.00027397,2]
[359425008,1746005440578,-500.0,0.00027397,2]
[359425010,1746005440587,-400.0,0.00027397,2]
[359425011,1746005440596,-673.43,0.00027397,2]
[359425012,1746005440606,-400.0,0.00027397,2]
[359425013,1746005440615,-500.0,0.00027397,2]
[359425015,1746005440625,-500.0,0.00027397,2]
[359425016,1746005440635,-400.0,0.00027397,2]
[359425017,1746005440645,-400.0,0.00027397,2]
[359425018,1746005440655,-400.0,0.00027397,2]
[359425019,1746005440664,-751.69,0.00027397,2]
[359425020,1746005440674,-400.0,0.00027397,2]
[359425022,1746005440683,-500.0,0.00027397,2]
[359425024,1746005440692,-500.0,0.00027397,2]
[359425025,1746005440701,-400.0,0.00027397,2]
[359425026,1746005440711,-400.0,0.00027397,2]
[359425027,1746005440721,-400.0,0.00027397,2]
[359425028,1746005440731,-400.0,0.00027397,2]
[359425029,1746005440741,-400.0,0.00027397,2]
[359425030,1746005440751,-803.74,0.00027397,2]
[359425031,1746005440761,-400.0,0.00027397,2]
[359425032,1746005440771,-500.0,0.00027397,2]
[359425033,1746005440781,-232.31470705,0.00027397,2]
[359425034,1746005440794,-167.68529295,0.00027397,2]
[359425035,1746005440803,-500.0,0.00027397,2]
[359425036,1746005440813,-500.0,0.00027397,2]
[359425037,1746005440823,-400.0,0.00027397,2]
[359425038,1746005440833,-241.4430536,0.00027397,2]
[359425071,1746005446572,-158.5569464,0.00027397,2]
[359425072,1746005446582,-400.0,0.00027397,2]
[359425073,1746005446592,-500.0,0.00027397,2]
[359425074,1746005446602,-400.0,0.00027397,2]
[359425075,1746005446611,-400.0,0.00027397,2]
[359425076,1746005446621,-500.97098562,0.00027397,2]
[359425077,1746005446630,-500.95366635,0.00027397,2]
[359425078,1746005446640,-400.0,0.00027397,2]
[359425079,1746005446650,-400.0,0.00027397,2]
[359425080,1746005446661,-500.36983695,0.00027397,2]
[359425081,1746005446671,-400.0,0.00027397,2]
[359425082,1746005446681,-500.60536846,0.00027397,2]
[359425083,1746005446691,-387.83871056,0.00027397,2]
[359425084,1746005446700,-500.26532647,0.00027397,2]
[359425085,1746005446710,-376.48038978,0.00027397,2]
[359425086,1746005446723,-123.51961022,0.00027397,2]
[359425087,1746005446733,-169.24776807,0.00027397,2]
[359425088,1746005446743,-400.0,0.00027397,2]
[359425089,1746005446753,-400.0,0.00027397,2]
[359425090,1746005446763,-400.0,0.00027397,2]
[359425091,1746005446772,-175.21646919,0.00027397,2]
[359425092,1746005446788,-224.78353081,0.00027397,2]
[359425093,1746005446797,-82.5364692,0.00027397,2]
[359425094,1746005446813,-317.4635308,0.00027397,2]
[359425095,1746005446824,-400.0,0.00027397,2]
[359425096,1746005446834,-391.55392952,0.00027397,2]
[359425097,1746005446846,-48.56562084,0.00027397,2]
[359425098,1746005446856,-1075.36,0.00027397,2]
[359425099,1746005446865,-400.0,0.00027397,2]
[359425100,1746005446875,-400.0,0.00027397,2]
[359425101,1746005446885,-240.7382486,0.00027397,2]
[359425102,1746005446894,-500.54274124,0.00027397,2]
[359425103,1746005446904,-500.0,0.00027397,2]
[359425104,1746005446914,-400.0,0.00027397,2]
[359425105,1746005446924,-400.82054359,0.00027397,2]
[359425106,1746005446933,-400.0,0.00027397,2]
[359425107,1746005446943,-400.0,0.00027397,2]
[359425108,1746005446953,-400.0,0.00027397,2]
[359425109,1746005446963,-506.81814958,0.00027397,2]
[359425110,1746005446973,-506.46724938,0.00027397,2]
[359425111,1746005446983,-400.0,0.00027397,2]
[359425112,1746005446993,-400.0,0.00027397,2]
[359425113,1746005447002,-400.0,0.00027397,2]
[359425114,1746005447012,-303.07015975,0.00027397,2]
[359425115,1746005447021,-403.70674982,0.00027397,2]
[359425116,1746005447031,-300.0,0.00027397,2]
[359425117,1746005447040,-400.0,0.00027397,2]
[359425118,1746005447049,-400.0,0.00027397,2]
[359425119,1746005447059,-502.83602165,0.00027397,2]
[359425120,1746005447069,-400.0,0.00027397,2]
[359425121,1746005447079,-400.0,0.00027397,2]
[359425122,1746005447089,-173.23175412,0.00027397,2]
[359425135,1746005979544,-150.0,0.00040281,31]
[359425136,1746005979571,-150.0,0.00040281,31]
[359425137,1746005979600,-300.0,0.00040281,31]
[359425138,1746005979624,-379.0,0.00040281,31]
[359425139,1746005979648,-583.0,0.00040281,31]
[359425140,1746005979671,-600.0,0.00040281,31]
[359425141,1746005979694,-926.0,0.00040281,31]
[359425142,1746005979717,-150.0,0.00040281,31]
[359425143,1746005979741,-264.0,0.00040281,31]
[359425144,1746005979766,-333.0,0.00040281,31]
[359425145,1746005979791,-513.0,0.00040281,31]
[359425146,1746005979815,-528.0,0.00040281,31]
[359425147,1746005979839,-815.0,0.00040281,31]
[359425148,1746005979862,-150.0,0.00040281,31]
[359425149,1746005979886,-208.0,0.00040281,31]
[359425150,1746005979910,-262.0,0.00040281,31]
[359425151,1746005980076,-404.0,0.00040281,31]
[359425152,1746005980102,-416.0,0.00040281,31]
[359425153,1746005980127,-642.0,0.00040281,31]
[359425154,1746005980150,-150.0,0.00040281,120]
[359425155,1746005980174,-150.0,0.00040281,31]
[359425156,1746005980197,-215.0,0.00040281,31]
[359425157,1746005980220,-430.0,0.00040281,31]
[359425158,1746005980244,-860.0,0.00040281,31]
[359425159,1746005980268,-1086.0,0.00040281,31]
[359425160,1746005980290,-1674.0,0.00040281,31]
[359425161,1746005980311,-1720.0,0.00040281,31]
[359425162,1746005980333,-2657.0,0.00040281,31]
[359425163,1746005980356,-150.0,0.00040281,31]
[359425164,1746005980379,-289.0,0.00040281,31]
[359425165,1746005980402,-578.0,0.00040281,31]
[359425166,1746005980424,-729.0,0.00040281,31]
[359425167,1746005980447,-1124.0,0.00040281,31]
[359425168,1746005980470,-1155.0,0.00040281,31]
[359425169,1746005980493,-1784.0,0.00040281,31]
[359425170,1746005980518,-150.0,0.00040281,31]
[359425171,1746005980541,-229.0,0.00040281,31]
[359425172,1746005980566,-459.0,0.00040281,31]
[359425173,1746005980591,-579.0,0.00040281,31]
[359425174,1746005980615,-892.0,0.00040281,31]
[359425175,1746005980639,-917.0,0.00040281,31]
[359425176,1746005980661,-1417.0,0.00040281,31]
[359425177,1746005980685,-400.0,0.00040281,120]
[359425178,1746005980708,-5000.0,0.00040281,120]
[359425179,1746005980731,-503.1613637,0.00040281,120]